Workbook

Sheet Superpesis
B1: Riikka Karppinen | E1: 19.11.1991 Kajaani
B2: SUPERPESIS | E2: Runkosarja | I2: Kärkilyönnit (KL), pesänvälit | Q2: Runkosarja | U2: Ylempi loppusarja | Z2: Alempi loppusarja | AE2: Arvo-ottelut ja mitalit | AK2: Runkosarjan jälkeen
B3: Vuosi | C3: Sija | D3: Seura | E3: OTT | F3: KUN | G3: LÖI | H3: TOI | I3: KL | J3: 0 > 1 | K3: 1 > 2 | L3: 2 > 3 | M3: 3 > k | N3: KL-% | P3: LÖI | Q3: TOI | R3: L+T | S3: KL | U3: OTT | V3: KUN | W3: LÖI | X3: TOI | Y3: KL | Z3: OTT | AA3: KUN | AB3: LÖI | AC3: TOI | AD3: KL | AE3: IL | AF3: LL | AG3: Halli | AH3: K | AI3: H | AJ3: P
B4: 2007 | D4: VuVe | F4: suomensarja
B5: 2008 | D5: VuVe | F5: ykköspesis
B6: 2009 | D6: VuVe | F6: ykköspesis
B7: 2009 | C7: 10. | D7: SiiPe | E7: 1 | F7: 0 | G7: 0 | H7: 0 | I7: 0 | J7: 0 | K7: 0 | L7: 0 | M7: 0 | N7: 0.0 % | O7: 5
B8: 2010 | D8: VuVe | F8: ykköspesis | O8: 0
B9: 2011 | C9: 5. | D9: ViU | E9: 22 | F9: 0 | G9: 15 | H9: 9 | I9: 67 | J9: 11 | K9: 13 | L9: 28 | M9: 15 | N9: 47.9 % | O9: =PRODUCT(I9/N9) -> 139.874739 | U9: 4 | V9: 0 | W9: 2 | X9: 1 | Y9: 16 | AK9: play off
B10: 2012 | C10: 4. | D10: ViU | E10: 21 | F10: 0 | G10: 12 | H10: 11 | I10: 67 | J10: 8 | K10: 16 | L10: 31 | M10: 12 | N10: 51.5 % | O10: =PRODUCT(I10/N10) -> 130.0970874 | T10: =PRODUCT(L10/S10) ->  | U10: 9 | V10: 0 | W10: 0 | X10: 4 | Y10: 24 | AK10: play off
B11: 2013 | C11: 11. | D11: ViU | E11: 24 | F11: 1 | G11: 11 | H11: 13 | I11: 104 | J11: 12 | K11: 27 | L11: 53 | M11: 12 | N11: 65.0 % | O11: =PRODUCT(I11/N11) -> 160 | Z11: 8 | AA11: 1 | AB11: 8 | AC11: 16 | AD11: 51 | AK11: alemmat pudotuspelit
B12: 2014 | C12: 8. | D12: VuVe | E12: 24 | F12: 1 | G12: 12 | H12: 22 | I12: 114 | J12: 20 | K12: 40 | L12: 41 | M12: 13 | N12: 64.4 % | O12: =PRODUCT(I12/N12) -> 177.0186335 | U12: 3 | V12: 0 | W12: 0 | X12: 0 | Y12: 7 | AK12: play off
B13: 2015 | C13: 8. | D13: ViU | E13: 24 | F13: 1 | G13: 7 | H13: 15 | I13: 94 | J13: 17 | K13: 29 | L13: 40 | M13: 8 | N13: 51.4 % | O13: 183 | U13: 3 | V13: 0 | W13: 0 | X13: 0 | Y13: 9 | AE13: 1 | AF13: 1 | AK13: play off
B14: 2016 | C14: 1. | D14: Kirittäret | E14: 22 | F14: 1 | G14: 30 | H14: 9 | I14: 82 | J14: 14 | K14: 15 | L14: 22 | M14: 31 | N14: 50.6 % | O14: 162 | P14: 10. | T14: =PRODUCT(L14/S14) ->  | U14: 10 | V14: 2 | W14: 12 | X14: 9 | Y14: 41 | AG14: 1 | AH14: 1 | AK14: play off
B15: 2017 | C15: 10. | D15: KPK | E15: 26 | F15: 1 | G15: 45 | H15: 13 | I15: 99 | J15: 7 | K15: 18 | L15: 28 | M15: 46 | N15: 53.8 % | O15: 184 | P15: 6. | R15: 4. | T15: =PRODUCT(L15/S15) ->  | AE15: 1 | AF15: 1
B16: Yhteensä | E16: =SUM(E5:E15) -> 164 | F16: 5 | G16: 132 | H16: 92 | I16: 627 | J16: 89 | K16: 158 | L16: 243 | M16: 137 | N16: =PRODUCT(I16/O16) -> 55.0 % | O16: =SUM(O7:O15) -> 1140.99046 | T16: =PRODUCT(L16/S16) ->  | U16: =SUM(U5:U15) -> 29 | V16: 2 | W16: 14 | X16: 14 | Y16: 97 | Z16: 8 | AA16: 1 | AB16: 8 | AC16: 16 | AD16: 51 | AE16: 2 | AF16: 2 | AG16: 1 | AH16: 1 | AI16: 0 | AJ16: 0
B17: Pesispörssi | D17: =SUM(F16:H16)+((I16-F16-G16)/3)+(E16/3)+(AE16*25)+(AF16*25)+(AG16*10)+(AH16*25)+(AI16*20)+(AJ16*15) -> 582.0
B19: URA SUPERISSA | E19: OTT | F19: KUN | G19: LÖI | H19: TOI | I19: KL | K19: ka/L | L19: ka/T | M19: ka/KL | N19: K - % | P19: ENSIMMÄISET
B20: Runkosarja | E20: =PRODUCT(E16) -> 164 | F20: =PRODUCT(F16) -> 5 | G20: =PRODUCT(G16) -> 132 | H20: =PRODUCT(H16) -> 92 | I20: =PRODUCT(I16) -> 627 | K20: =PRODUCT((F20+G20)/E20) -> 0.84 | L20: =PRODUCT(H20/E20) -> 0.56 | M20: =PRODUCT(I20/E20) -> 3.82 | N20: =PRODUCT(N16) -> 55.0 % | O20: =PRODUCT(O16) -> 1140.99046 | P20: Ottelu | S20: 08.07. 2009 ViU - SiiPe 1-0 (0-0, 1-0) | AD20: 1. ottelu | AG20: 17 v 7 kk 19 pv
B21: Ylempi loppusarja | E21: =PRODUCT(U16) -> 29 | F21: =PRODUCT(V16) -> 2 | G21: =PRODUCT(W16) -> 14 | H21: =PRODUCT(X16) -> 14 | I21: =PRODUCT(Y16) -> 97 | K21: =PRODUCT((F21+G21)/E21) -> 0.55 | L21: =PRODUCT(H21/E21) -> 0.48 | M21: =PRODUCT(I21/E21) -> 3.34 | N21: =PRODUCT(I21/O21) -> 54.5 % | O21: 178 | P21: Lyöty juoksu | S21: 10.05. 2011 ViU - SiiPe 2-1 (15-0, 4-5, 0-0, 3-2) | AD21: 2. ottelu | AG21: 19 v 5 kk 21 pv
B22: Alempi loppusarja | E22: =PRODUCT(Z16) -> 8 | F22: =PRODUCT(AA16) -> 1 | G22: =PRODUCT(AB16) -> 8 | H22: =PRODUCT(AC16) -> 16 | I22: =PRODUCT(AD16) -> 51 | K22: =PRODUCT((F22+G22)/E22) -> 1.13 | L22: =PRODUCT(H22/E22) -> 2.00 | M22: =PRODUCT(I22/E22) -> 6.38 | N22: =PRODUCT(I22/O22) -> 63.8 % | O22: 80 | P22: Tuotu juoksu | S22: 13.05. 2011 Turku-Pesis - ViU 2-1 (3-2, 1-2, 0-0, 2-1) | AD22: 3. ottelu | AG22: 19 v 5 kk 24 pv
B23: KAIKKI | E23: =SUM(E20:E22) -> 201 | F23: =SUM(F20:F22) -> 8 | G23: =SUM(G20:G22) -> 154 | H23: =SUM(H20:H22) -> 122 | I23: =SUM(I20:I22) -> 775 | K23: =PRODUCT((F23+G23)/E23) -> 0.81 | L23: =PRODUCT(H23/E23) -> 0.61 | M23: =PRODUCT(I23/E23) -> 3.86 | N23: =PRODUCT(I23/O23) -> 55.4 % | O23: =SUM(O20:O22) -> 1398.99046 | P23: Kunnari | S23: 30.06. 2013 ViU - VuVe 1-0 (6-1, 7-7) | AD23: 47. ottelu | AG23: 21 v 7 kk 11 pv
B25: Seurat | D25: VuVe = Vuokatin Veto (1946), kasvattajaseura
D26: SiiPe = Siilinjärven Pesis (1987)
D27: ViU = Viinijärven Urheilijat (1914)
D28: Kirittäret = Jyväskylän Pesis (2004)
D29: KPK = Kajaanin Pallokerho (1933)

Sheet Arvo-ottelut
B1: ITÄ - LÄNSI - KORTTI
B2: Riikka Karppinen | C2: 19.11.1991 Kajaani
B3: NAISET | C3: Itä - Länsi, tulos | D3: Joukkue | E3: Seura | G3: V | H3: T | I3: H | J3: Up. | K3: Lj. | L3: Palk. | M3: O | N3: K | O3: L | P3: T | Q3: KL | R3: 1 | S3: 2 | T3: 3 | U3: k | V3: KL-% | W3: Pelinjohtaja | X3: Yleisöä
B4: 27.06. 2015 Hyvinkää | C4: 1-2 (1-4, 4-2, 0-1) | D4: Itä | E4: ViU | I4: 1 | J4: 2v | K4: 6 | M4: 1 | Q4: 3/5 | S4: 1/1 | T4: 2/2 | U4: 0/2 | V4: 60.0 % | W4: Jussi Viljanen | X4: 3197
B5: 01.07. 2017 Imatra | C5: 0-1 (2-2, 3-7) | D5: Itä | E5: KPK | I5: 1 | K5: jok | M5: 1 | O5: 2 | Q5: 4/10 | T5: 2/3 | U5: 2/7 | V5: 40.0 % | W5: Antti Vihtkari | X5: 3171
B6: Yhteensä | I6: =SUM(I4:I5) -> 2 | M6: =SUM(M4:M5) -> 2 | P6: =SUM(P4:P5) -> 0 | Q6: 7/15 | S6: 1/1 | T6: 4/5 | U6: 2/9 | V6: 46.7 %
B8: Ikä ensimmäisessä ottelussa | C8: 23 v 7 kk 8 pv
B10: B - TYTÖT | C10: Itä - Länsi, tulos | D10: Joukkue | E10: Seura | G10: V | H10: T | I10: H | J10: Up. | K10: Lj. | L10: Palk. | M10: O | N10: K | O10: L | P10: T | Q10: KL | R10: 1 | S10: 2 | T10: 3 | U10: k | V10: KL-% | W10: Pelinjohtaja | X10: Yleisöä
B11: 28.06. 2009 Kuopio | C11: 2-1 (1-4, 4-3, 1-0) | D11: Itä | E11: VuVe | G11: 1 | J11: 2p | K11: 8 | M11: 1 | Q11: 1/2 | R11: 0/1 | S11: 1/1 | V11: 50.0 % | W11: Niina Sippola | X11: 2071
B12: 03.07. 2010 Helsinki | C12: 1-2 (8-5, 2-3, 0-1) | D12: Itä | E12: VuVe | I12: 1 | J12: L | K12: 3 | M12: 1 | P12: 2 | Q12: 4/9 | R12: 1/1 | S12: 2/5 | T12: 1/2 | U12: 0/1 | V12: 44.4 % | W12: Marjut Hylkilä | X12: 1032
B13: Yhteensä | G13: =SUM(G11:G12) -> 1 | I13: 1 | M13: =SUM(M11:M12) -> 2 | P13: =SUM(P11:P12) -> 2 | Q13: 5/11 | R13: 1/2 | S13: 3/6 | T13: 1/2 | U13: 0/1 | V13: 45.5 %
B15: LIITTO - LEHDISTÖ - KORTTI
B16: NAISET | C16: Tulos | D16: Joukkue | E16: Seura | G16: V | H16: T | I16: H | J16: Up. | K16: Lj. | L16: Palk. | M16: O | N16: K | O16: L | P16: T | Q16: KL | R16: 1 | S16: 2 | T16: 3 | U16: k | V16: KL-% | W16: Pelinjohtaja | X16: Yleisöä
B17: 18.06. 2014 Viinijärvi | C17: 1-2 (1-3, 3-1, 0-1) | D17: Lehdistö | E17: VuVe | G17: 1 | J17: 2P | K17: 7 | M17: 1 | Q17: 2/6 | R17: 1/4 | S17: 0/1 | T17: 1/1 | U17: 0/1 | V17: 33.3 % | W17: Antti Yli-Saunamäki | X17: 627
B18: 20.06. 2017 Lapua | C18: 0-1 (1-4, 2-2) | D18: Liitto | E18: KPK | I18: 1 | J18: 2p | K18: 4 | M18: 1 | Q18: 1/4 | R18: 0/1 | S18: 0/1 | T18: 1/1 | U18: 0/1 | V18: 25.0 % | W18: Jukka Liikala | X18: 804
B19: Yhteensä | G19: =SUM(G17:G18) -> 1 | I19: 1 | M19: =SUM(M17:M18) -> 2 | Q19: 3/10 | R19: 1/5 | S19: 0/2 | T19: 2/2 | U19: 0/2 | V19: 30.0 %
B20: Ikä ensimmäisessä ottelussa | C20: 22 v 6 kk 30 pv
